bitfinex/quotes_ETHUSD_20220308
["timestamp","ask_amount","ask_price","bid_price","bid_amount"]
[1646737937066,0.56519006,2591.2,2591.1,0.50030882]
[1646737938172,5.4242,2591.1,2589.8,1.9310672]
[1646737938375,0.70706102,2590.5,2589.9,1.45830023]
[1646737938670,0.80625108,2590.4,2589.9,7.7420406]
[1646737939073,4.5,2590.7,2589.9,7.7420406]
[1646737939074,0.70706102,2590.2,2589.9,7.7420406]
[1646737939271,1.1292188,2590.1,2589.9,7.7420406]
[1646737939474,0.09919006,2590.0,2589.9,7.7420406]
[1646737939873,0.09919006,2590.0,2589.9,9.21337579]
[1646737940575,0.09919006,2590.0,2589.9,7.7420406]
[1646737941212,3.59919006,2590.0,2589.4,0.96588]
[1646737941424,0.09919006,2589.9,2589.5,1.47144188]
[1646737941615,0.09919006,2589.8,2589.5,1.47144188]
[1646737941813,0.09919006,2589.7,2589.6,1.47144188]
[1646737942313,0.09919006,2589.7,2589.3,1.47144188]
[1646737942514,0.09919006,2589.6,2589.4,1.47144188]
[1646737942712,0.09919006,2589.5,2589.2,1.93168]
[1646737942914,0.00387685,2589.8,2589.3,1.47082214]
[1646737943113,0.99373168,2589.7,2589.3,1.47082214]
[1646737943313,0.08208901,2589.6,2589.3,1.47082214]
[1646737943519,0.00387685,2589.5,2589.3,1.47082214]
[1646737943919,0.00387685,2589.5,2589.1,3.13456]
[1646737944119,0.00387685,2589.5,2589.2,1.47153083]
[1646737944319,0.00387685,2589.5,2589.2,2.71343299]
[1646737944582,0.08208901,2589.5,2589.3,1.47153083]
[1646737944780,0.08596586,2589.4,2589.3,1.47153083]
[1646737945582,0.08596586,2589.4,2589.2,1.24190216]
[1646737945780,1.22063288,2589.8,2589.2,1.24190216]
[1646737945981,0.00387685,2589.5,2589.3,2.43595466]
[1646737946185,0.00387685,2589.5,2589.4,2.56986757]
[1646737946985,0.08076636,2590.1,2589.7,1.1]
[1646737947386,0.08076636,2590.0,2589.7,1.1]
[1646737947587,0.08076636,2589.9,2589.7,1.1]
[1646737947787,0.08076636,2589.8,2589.7,1.1]
[1646737948187,0.08076636,2590.1,2589.7,1.1]
[1646737948419,0.08076636,2590.1,2590.0,1.1]
[1646737949218,0.08076636,2590.3,2590.0,1.1]
[1646737949424,0.08076636,2590.3,2589.7,1.1]
[1646737949620,0.00387685,2590.2,2589.7,1.1]
[1646737950419,0.08076636,2590.3,2589.7,1.1]
[1646737950619,4.66401717,2590.4,2589.7,1.1]
[1646737950924,0.00387685,2590.1,2589.7,1.1]
[1646737951720,5.37107819,2590.4,2589.7,1.1]
[1646737951920,0.00387685,2590.0,2589.7,1.1]
[1646737952568,0.00387685,2590.0,2589.9,1.1]
[1646737952970,4.20706102,2590.6,2589.9,1.1]
[1646737953168,0.00387685,2590.0,2589.9,1.1]
[1646737954173,3.5,2590.5,2589.9,1.1]
[1646737954372,3.5,2590.5,2589.8,1.1]
[1646737954373,0.00387685,2590.1,2589.8,1.1]
[1646737955275,4.20706102,2590.4,2589.8,1.1]
[1646737955473,1.09770288,2590.0,2589.8,1.1]
[1646737956722,1.10157973,2590.0,2589.8,1.1]
[1646737957123,1.10157973,2590.0,2589.8,0.99000001]
[1646737957323,3.5,2589.9,2589.8,0.99000001]
[1646737960064,1.8047639,2590.0,2589.8,0.99000001]
[1646737960266,1.09770288,2590.0,2589.8,0.99000001]
[1646737960471,3.5,2589.9,2589.8,0.99000001]
[1646737960867,1.10157973,2590.0,2589.8,0.99000001]
[1646737961065,3.5,2589.9,2589.8,0.99000001]
[1646737962366,3.966,2589.9,2589.8,0.99000001]
[1646737962567,4.966,2589.9,2589.8,0.99000001]
[1646737962768,0.4096,2589.8,2588.7,1.5845]
[1646737962969,0.7051828,2589.6,2588.7,1.5845]
[1646737963169,3.966,2589.5,2588.7,1.5845]
[1646737963434,4.10419996,2589.5,2588.8,1.10000001]
[1646737963833,1.15744391,2589.0,2588.8,1.10000001]
[1646737964033,1.15744391,2589.0,2588.9,1.10000001]
[1646737965935,1.15744391,2589.0,2588.5,1.10000001]
[1646737967567,0.00387681,2588.9,2588.5,1.10000001]
[1646737968167,0.95874659,2588.6,2588.5,1.10000001]
[1646737969973,0.466,2588.9,2588.5,1.10000001]
[1646737969974,0.46987651,2588.9,2588.5,1.10000001]
[1646737970573,0.07892891,2588.8,2588.5,1.10000001]
[1646737970826,0.00387651,2588.9,2588.5,1.10000001]
[1646737971014,0.07892308,2589.0,2588.5,1.10000001]
[1646737971215,0.00387674,2588.9,2588.5,1.10000001]
[1646737971615,0.08280217,2588.9,2588.5,1.10000001]
[1646737972220,0.07892543,2588.9,2588.5,1.10000001]
[1646737972415,0.08280217,2588.9,2588.5,1.10000001]
[1646737973418,0.58755358,2589.3,2588.5,1.10000001]
[1646737973619,0.58755358,2589.3,2588.6,7.44236426]
[1646737973620,0.00387674,2588.9,2588.6,7.44236426]
[1646737973822,0.00387674,2588.9,2588.8,1.48610001]
[1646737974120,0.00387674,2588.9,2588.8,6.77624426]
[1646737974564,0.58755358,2589.3,2588.8,3.27624426]
[1646737974768,0.58755358,2589.3,2589.0,1.10000001]
[1646737975967,0.5913971,2589.3,2589.0,1.10000001]
[1646737976966,0.58755358,2589.3,2589.0,1.10000001]
[1646737978416,0.58870663,2589.3,2589.0,1.10000001]
[1646737979318,0.58472857,2590.0,2589.3,4.55561301]
[1646737979517,0.07890488,2589.9,2589.4,4.60000001]
[1646737979716,0.07890488,2589.9,2589.4,1.10000001]
[1646737980617,0.07890488,2589.8,2589.6,1.10000001]
[1646737980816,0.07890488,2589.7,2589.6,1.10000001]
[1646737981220,0.00387685,2589.8,2589.7,1.10000001]
[1646737981820,0.07889779,2589.9,2589.7,1.10000001]
[1646737982068,0.7051828,2590.5,2589.7,1.10000001]
[1646737982267,0.00387685,2589.9,2589.7,1.10000001]
[1646737982971,0.7051828,2590.4,2589.7,1.10000001]
[1646737982972,0.07889571,2590.2,2589.7,1.10000001]
[1646737983168,0.00387685,2589.9,2589.7,1.10000001]
[1646737984175,0.94297911,2590.3,2589.7,1.10000001]
[1646737984375,0.00387685,2589.9,2589.7,1.10000001]
[1646737984976,0.00387685,2589.9,2589.7,1.48610001]
[1646737985179,0.08277256,2589.9,2589.7,1.48610001]
[1646737985376,0.07890023,2589.8,2589.7,1.48610001]
[1646737985576,0.7051828,2590.5,2589.7,1.10000001]
[1646737985577,1.01173772,2590.3,2589.7,1.10000001]
[1646737985825,0.0789002,2590.2,2589.7,1.10000001]
[1646737986216,0.784083,2590.2,2589.7,1.10000001]
[1646737986819,0.00387017,2590.1,2589.7,1.10000001]
[1646737987218,1.12539646,2589.8,2589.7,1.10000001]
[1646737987424,1.20429666,2589.8,2589.7,1.10000001]
[1646737987624,0.0789002,2589.8,2589.7,1.10000001]
[1646737988024,0.00387017,2589.9,2589.7,1.10000001]
[1646737988826,0.08277037,2589.9,2589.7,1.10000001]
[1646737989024,0.0789002,2589.8,2589.7,1.10000001]
[1646737989424,0.00387017,2589.9,2589.7,2.06567411]
[1646737990069,1.13484708,2590.2,2589.7,2.06567411]
[1646737990267,0.0789002,2590.1,2589.7,2.06567411]
[1646737990471,0.00387017,2589.9,2589.7,1.10000001]
[1646737991068,0.08277037,2589.9,2589.7,1.10000001]
[1646737991268,0.0789002,2589.8,2589.7,1.10000001]
[1646737991768,0.00387017,2589.9,2589.7,1.10000001]
[1646737992469,0.784083,2590.3,2589.7,1.10000001]
[1646737992971,0.00387017,2589.9,2589.7,2.06566461]
[1646737993819,0.784083,2590.3,2589.7,2.06566461]
[1646737994025,0.00387017,2589.9,2589.7,2.06566461]
[1646737994224,0.00387017,2589.9,2589.7,1.10000001]
[1646737994922,0.0789002,2590.1,2589.7,1.10000001]
[1646737995226,0.00387017,2589.9,2589.7,1.10000001]
[1646737995424,0.08277037,2589.9,2589.7,1.10000001]
[1646737995626,0.0789002,2589.8,2589.7,1.10000001]
[1646737995824,0.00387017,2589.9,2589.7,1.10000001]
[1646737996224,0.7051828,2590.1,2589.7,1.10000001]
[1646737996426,0.00387017,2589.9,2589.7,1.10000001]
[1646737996624,0.00387017,2589.9,2589.7,1.09491953]
[1646737996625,0.08153286,2589.9,2589.7,1.09491953]
[1646737996826,0.0789002,2589.8,2589.7,1.09491953]
[1646737997065,1.04879857,2589.8,2589.7,1.09491953]
[1646737997267,0.0789002,2589.8,2589.7,1.09491953]
[1646737997666,0.7051828,2590.1,2589.7,1.09491953]
[1646737998066,0.784083,2590.1,2589.7,1.09491953]
[1646737998269,0.0789002,2590.0,2589.7,1.09491953]
[1646737998469,0.0789002,2589.9,2589.7,1.09491953]
[1646737998671,0.0789002,2589.8,2589.7,1.09491953]
[1646737998871,0.00386708,2590.0,2589.7,1.09491953]
[1646737999274,0.70904988,2590.0,2589.7,1.09491953]
[1646737999471,0.70904988,2590.0,2589.7,0.89769975]
[1646737999672,0.7051828,2590.0,2589.7,0.89769975]
[1646738000073,0.70904988,2590.0,2589.7,0.89769975]
[1646738000921,0.7051828,2590.0,2589.7,0.89769975]
[1646738001318,0.0789002,2589.9,2589.7,0.89769975]
[1646738001516,0.0789002,2589.8,2589.7,0.89769975]
[1646738001917,0.00386708,2590.0,2589.7,0.89769975]
[1646738002118,0.7051828,2590.1,2589.7,0.89769975]
[1646738002516,0.00386708,2589.9,2589.7,0.89769975]
[1646738003318,0.7051828,2590.1,2589.7,0.89769975]
[1646738003723,0.00386708,2589.9,2589.7,0.89769975]
[1646738004665,0.7051828,2590.1,2589.7,0.89769975]
[1646738004866,0.00386708,2589.9,2589.7,0.89769975]
[1646738005868,0.7051828,2590.1,2589.7,0.89769975]
[1646738006071,1.14987114,2589.9,2589.7,0.89769975]
[1646738006369,0.0789002,2589.8,2589.7,0.89769975]
[1646738006569,0.784083,2589.8,2589.7,0.89769975]
[1646738006768,0.5449002,2589.8,2589.7,0.89769975]
[1646738006969,1.48764823,2589.8,2589.7,0.89769975]
[1646738007967,0.5449002,2589.8,2589.7,0.89769975]
[1646738009725,1.5449002,2589.8,2589.7,0.89769975]
[1646738010523,1.5449002,2589.8,2589.3,0.55561301]
[1646738010725,0.70635805,2589.4,2589.3,0.55561301]
[1646738010930,1.17235805,2589.4,2589.3,0.55561301]
[1646738011133,1.25125825,2589.4,2589.3,0.55561301]
[1646738011331,1.5449002,2589.4,2589.3,0.55561301]
[1646738011727,3.40926226,2589.4,2589.3,0.55561301]
[1646738012669,5.5,2589.3,2588.3,0.0049723]
[1646738012871,1.67275175,2589.0,2588.3,0.0049723]
[1646738013070,1.25121195,2588.9,2588.2,0.3862]
[1646738013268,1.25121195,2588.9,2588.3,0.00515213]
[1646738013882,0.96659,2588.7,2588.3,0.00515213]
[1646738014074,0.07895146,2588.6,2588.3,0.00515213]
[1646738014273,0.07895146,2588.6,2587.8,1.128]
[1646738014573,1.09010184,2588.2,2587.9,1.50869014]
[1646738014773,0.07895146,2588.1,2587.9,1.50869014]
[1646738014974,0.07895146,2588.1,2587.6,0.02061275]
[1646738015174,0.07895146,2588.1,2587.6,0.98711315]
[1646738015374,0.07895146,2588.1,2587.4,8.418]
[1646738015573,0.07895146,2588.1,2587.9,0.00515247]
[1646738016433,0.54495146,2588.1,2587.9,0.00515247]
[1646738016631,0.466,2588.1,2587.4,0.00221057]
[1646738016831,1.17231175,2588.1,2587.3,0.11569218]
[1646738017032,2.13910175,2588.1,2587.3,0.11569218]
[1646738017832,1.12798838,2587.4,2587.3,0.11569218]
[1646738018030,2.13910175,2588.1,2587.3,0.11569218]
[1646738018031,0.466,2587.9,2587.3,0.11569218]
[1646738019431,1.04788562,2587.4,2587.3,0.11569218]
[1646738019666,0.466,2587.9,2587.4,0.63666894]
[1646738019868,1.16668123,2587.8,2587.4,0.63666894]
[1646738020473,1.16668123,2587.8,2587.5,0.00513237]
[1646738021474,1.16668123,2587.8,2587.4,0.63666894]
[1646738021674,1.16668123,2587.8,2587.5,0.00513237]
[1646738022573,0.466,2587.9,2587.4,0.63666894]
[1646738022773,0.57915483,2588.0,2587.4,0.63666894]
[1646738022974,0.57915483,2588.0,2587.5,0.00513237]
[1646738023825,0.57915483,2588.0,2587.4,0.63666894]
[1646738024032,1.54597483,2588.0,2587.6,0.00513222]
[1646738024828,0.99391903,2587.8,2587.6,0.00513222]
[1646738025029,0.99391903,2587.8,2587.4,1.60338894]
[1646738025231,0.99391903,2587.8,2587.7,0.00503592]
[1646738026127,0.99391903,2587.8,2587.5,0.2]
[1646738026531,0.99391903,2587.8,2587.6,0.00503599]
[1646738027371,0.99391903,2587.8,2587.5,0.2]
[1646738027572,0.99391903,2587.8,2587.6,0.00503607]
[1646738027772,0.57915483,2588.0,2587.6,0.00503607]
[1646738028577,0.57915483,2588.0,2587.5,0.2]
[1646738028777,1.48933013,2588.0,2587.7,0.00478376]
[1646738029678,1.48933013,2588.0,2587.5,0.2]
[1646738030179,1.48933013,2588.0,2587.7,0.00478369]
[1646738030830,2.45614013,2588.0,2587.7,0.00478369]
[1646738031020,3.5,2587.9,2587.5,0.2]
[1646738031218,3.5,2587.9,2587.7,0.00478369]
[1646738032221,3.5,2587.9,2587.5,0.2]
[1646738032422,3.5,2587.9,2587.7,0.00479672]
[1646738033223,5.95614013,2588.0,2587.7,0.00479672]
[1646738033424,2.45614013,2588.0,2587.5,0.2]
[1646738033624,2.45614013,2588.0,2587.7,0.00479672]
[1646738033826,3.5,2587.9,2587.7,0.00479672]
[1646738034670,2.45614013,2588.0,2587.5,0.2]
[1646738034870,2.45614013,2588.0,2587.7,0.00479672]
[1646738035071,1.11678051,2587.9,2587.7,0.00479672]
[1646738035473,4.61678051,2587.9,2587.7,0.00479672]
[1646738035674,1.11678051,2587.9,2587.7,0.00479672]
[1646738035873,1.11678051,2587.9,2587.5,0.2]
[1646738036075,1.11678051,2587.9,2587.7,0.00495774]
[1646738036675,0.57915483,2588.0,2587.7,0.00495774]
[1646738037079,0.57915483,2588.0,2587.5,0.2]
[1646738037477,0.57915483,2588.0,2587.7,0.00495774]
[1646738037677,1.66622115,2588.0,2587.7,0.00495774]
[1646738038330,1.66622115,2588.0,2587.7,0.00495766]
[1646738039428,1.66622115,2588.0,2587.5,0.2]
[1646738039626,1.66622115,2588.0,2587.7,0.00478863]
[1646738039826,1.66622115,2588.0,2587.7,0.00398863]
[1646738040228,0.57915483,2588.0,2587.7,0.20398863]
[1646738040629,0.57915483,2588.0,2587.7,0.2]
[1646738041431,0.57915483,2588.0,2587.9,1.39336138]
[1646738043576,0.57915483,2588.0,2587.8,0.20397167]
[1646738044174,0.57915483,2588.0,2587.8,0.2]
[1646738044377,0.57915483,2588.0,2587.8,0.20513199]
[1646738044580,1.61997555,2588.0,2587.8,0.00513199]
[1646738045378,3.5,2587.9,2587.6,0.2]
[1646738045583,0.96685,2587.9,2587.5,0.2]
[1646738045832,0.96685,2587.9,2587.8,0.00513199]
[1646738046324,6.08685555,2588.0,2587.8,0.00513199]
[1646738046325,1.61997555,2588.0,2587.8,0.00513199]
[1646738046525,1.61997555,2588.0,2587.5,0.2]
[1646738046925,1.61997555,2588.0,2587.7,0.00513206]
[1646738047323,0.0923655,2587.9,2587.7,0.00513206]
[1646738047723,0.0923655,2587.9,2587.5,0.2]
[1646738048124,0.0923655,2587.9,2587.7,0.0049781]
[1646738048523,50.0923655,2587.9,2587.7,0.0049781]
[1646738048724,50.0,2587.9,2587.7,0.0049781]
[1646738048925,50.0,2587.9,2587.5,0.2]
[1646738049124,3.57895929,2587.8,2587.5,0.2]
[1646738049325,3.5,2587.8,2587.7,0.00497818]
[1646738049572,3.57896049,2587.8,2587.7,0.00497818]
[1646738050173,3.57896049,2587.8,2587.5,0.2]
[1646738050374,0.07896049,2587.7,2587.5,0.2]
[1646738050576,0.07896049,2587.7,2587.6,0.00497825]
[1646738050775,3.57896049,2587.7,2587.6,0.00497825]
[1646738051377,3.57896049,2587.7,2587.5,0.2]
[1646738051577,3.57896049,2587.7,2587.5,0.20478383]
[1646738051578,0.95800396,2587.6,2587.5,0.20478383]
[1646738052580,0.95800396,2587.6,2587.5,0.2]
[1646738057367,0.95800396,2587.6,2587.5,1.68792398]
[1646738057570,0.07896049,2587.6,2587.5,1.68792398]
[1646738057966,0.72343154,2587.8,2587.5,1.68792398]
[1646738058169,0.07896049,2587.8,2587.7,0.2]
[1646738058370,0.07896049,2587.8,2587.7,1.68792398]
[1646738058573,0.07896049,2587.8,2587.7,2.89836366]
[1646738058774,0.07896049,2587.8,2587.7,2.07402398]
[1646738059972,0.07896049,2587.8,2587.7,1.68792398]
[1646738062628,0.07896049,2587.8,2587.6,0.004796]
[1646738062830,0.72488584,2587.8,2587.7,1.68883417]
[1646738063029,0.72488584,2587.8,2587.7,0.2]
[1646738063229,0.72488584,2587.8,2587.7,0.17952041]
[1646738063632,0.72488584,2587.8,2587.6,0.004796]
[1646738063832,0.72488584,2587.8,2587.7,1.67012691]
[1646738064034,0.72488584,2587.8,2587.7,0.17952041]
[1646738064433,0.07896049,2587.8,2587.7,1.67006263]
[1646738066171,0.07896049,2587.8,2587.7,1.157]
[1646738066873,0.07896049,2587.8,2587.7,5.3431]
[1646738067071,50.0,2587.9,2587.8,13.3431]
[1646738067072,49.92103951,2587.9,2587.8,13.3431]
[1646738067272,49.92103951,2587.9,2587.8,1.5431]
[1646738067674,32.38002396,2587.9,2587.8,2.63983874]
[1646738067874,12.23402733,2587.9,2587.8,6.13983874]
[1646738068078,1.80072205,2589.3,2588.0,13.3431]
[1646738068079,0.70631175,2588.9,2588.0,13.3431]
[1646738068338,0.70631175,2589.0,2588.3,13.3431]
[1646738068731,0.70631175,2589.1,2588.7,0.9660629]
[1646738068932,0.70631175,2589.1,2588.8,1.157]
[1646738069535,0.70631175,2589.2,2588.8,1.157]
[1646738069735,1.40444695,2589.3,2588.8,1.157]
[1646738069736,0.70631175,2589.1,2588.8,1.157]
[1646738069934,0.70631175,2589.0,2588.8,1.157]
[1646738070935,0.71018399,2589.0,2588.8,1.157]
[1646738071837,0.70631175,2589.0,2588.8,1.157]
[1646738072077,0.71018399,2589.0,2588.8,1.157]
[1646738073082,0.70631175,2589.1,2588.8,1.157]
[1646738073286,0.00387224,2589.0,2588.8,1.157]
[1646738073885,0.71018399,2589.0,2588.8,1.157]
[1646738074084,0.00387224,2589.0,2588.8,1.157]
[1646738074285,0.70631175,2589.1,2588.8,1.157]
[1646738074485,0.00387224,2589.0,2588.8,1.157]
[1646738075487,0.70631175,2589.3,2588.8,1.157]
[1646738075688,0.20150939,2589.6,2588.8,1.157]
[1646738075689,0.00387224,2589.0,2588.8,1.157]
[1646738077028,0.00387224,2589.0,2588.9,13.3431]
[1646738077228,0.00387224,2589.0,2588.9,17.8431]
[1646738077630,0.00387224,2589.0,2588.9,15.30889]
[1646738077832,0.70631175,2590.1,2588.9,15.30889]
[1646738078028,4.441749,2590.4,2589.5,1.157]
[1646738078029,1.60733164,2590.2,2589.5,1.157]
[1646738078331,1.60733164,2590.2,2589.7,1.157]
[1646738078728,0.70631175,2590.1,2589.7,1.157]
[1646738079130,1.60733164,2590.2,2589.7,1.157]
[1646738079328,0.0011655,2590.1,2589.7,1.157]
[1646738080180,4.20631175,2590.1,2589.7,1.157]
[1646738080378,0.0011655,2590.0,2589.7,1.157]
[1646738080578,0.70631175,2589.9,2589.7,1.157]
[1646738080779,0.0011655,2590.0,2589.7,1.157]
[1646738080780,4.20631175,2589.8,2589.7,1.157]
[1646738081184,5.5,2589.7,2589.3,1.157]
[1646738081384,5.5,2589.7,2589.4,1.157]
[1646738081385,3.966,2589.6,2589.4,1.157]
[1646738081579,3.966,2589.6,2588.7,0.41691545]
[1646738081580,3.5,2589.5,2588.7,0.41691545]
[1646738081880,5.5,2589.2,2588.4,4.6025]
[1646738082079,5.5,2589.2,2587.7,2.8602]
[1646738082080,0.70352771,2589.0,2587.7,2.8602]
[1646738082280,1.06578651,2588.1,2587.7,2.8602]
[1646738082480,1.06578651,2588.1,2587.5,4.80773523]
[1646738082681,3.5,2588.7,2587.4,0.70078931]
[1646738083081,0.00387215,2588.5,2587.5,0.0051346]
[1646738083730,1.08718482,2588.1,2587.5,0.0051346]
[1646738083929,1.08718482,2588.1,2587.4,1.00078931]
[1646738084129,1.08718482,2588.1,2587.5,0.00513444]
[1646738085029,1.08718482,2588.1,2587.4,0.61468931]
[1646738085229,1.08718482,2588.1,2587.5,0.9665211]
[1646738085431,1.08718482,2588.1,2587.5,0.97165545]
[1646738086233,1.08718482,2588.1,2587.5,0.9665211]
[1646738086430,1.08718482,2588.1,2587.5,0.9623001]
[1646738086631,1.08718482,2588.1,2587.6,0.1]
[1646738088884,3.5038714,2588.5,2587.6,0.1]
[1646738089080,0.10007057,2588.4,2587.6,0.1]
[1646738089282,0.10007057,2588.3,2587.7,0.1]
[1646738089481,0.10007057,2588.2,2587.7,0.1]
[1646738089682,0.0038714,2588.5,2587.7,0.1]
[1646738089981,1.18161864,2588.2,2587.7,0.1]
[1646738090181,0.1000724,2588.1,2587.7,0.1]
[1646738092026,0.1000724,2588.1,2587.6,0.1]
[1646738092526,0.1000724,2588.1,2587.7,0.1]
[1646738093127,0.1000724,2588.1,2587.6,0.1]
[1646738093327,0.1000724,2588.1,2587.7,0.1]
[1646738093933,0.00387148,2588.5,2587.7,0.1]
[1646738094586,1.16175972,2588.3,2587.7,0.1]
[1646738094789,0.1001385,2588.2,2587.7,0.1]
[1646738096087,3.6001385,2588.2,2587.7,0.1]
[1646738096387,0.1001385,2588.1,2587.7,0.1]
[1646738096589,3.6001385,2588.2,2587.7,0.1]
[1646738096788,0.1001385,2588.1,2587.7,0.1]
[1646738096990,0.1001385,2588.0,2587.7,0.1]
[1646738097187,1.16175972,2588.3,2587.7,0.1]
[1646738097389,0.08660698,2588.2,2587.7,0.1]
[1646738097988,0.88864393,2587.9,2587.7,0.1]
[1646738099438,3.5,2588.4,2587.7,0.1]
[1646738099634,0.08663397,2588.3,2587.7,0.1]
[1646738100434,1.20190807,2588.2,2587.7,0.1]
[1646738100734,0.08663397,2588.1,2587.7,0.1]
[1646738101533,1.18753809,2587.8,2587.7,0.1]
[1646738101737,1.27432343,2587.8,2587.7,0.1]
[1646738102682,1.27432343,2587.8,2587.7,0.08891924]
[1646738102881,1.27432343,2587.8,2587.5,0.09371736]
[1646738103081,1.18753809,2587.8,2587.6,0.08891924]
[1646738103982,0.08663118,2587.7,2587.5,0.0937173]
[1646738104183,0.08663118,2587.7,2587.5,0.08891924]
[1646738104581,0.08663118,2587.7,2587.5,0.09371727]
[1646738104782,3.58663118,2587.7,2587.5,0.09371727]
[1646738105083,0.08663118,2587.6,2587.5,0.09371727]
[1646738105483,0.08663118,2587.6,2587.5,0.08891924]
[1646738105682,0.08663118,2587.7,2587.5,0.08891924]
[1646738108044,0.08663118,2587.7,2587.5,0.09404963]
[1646738109042,1.65511158,2587.6,2587.5,0.08891924]
[1646738109244,3.39685434,2587.6,2587.5,0.08891924]
[1646738109447,3.39685434,2587.6,2587.5,0.09404963]
[1646738110275,3.39685434,2587.6,2587.5,0.08891924]
[1646738110690,3.31022316,2587.6,2587.5,0.08891924]
[1646738117280,3.39506952,2587.6,2587.5,0.08891924]
[1646738120582,3.31022316,2587.6,2587.5,0.08891924]
[1646738121030,2.49969996,2588.4,2587.5,0.08891924]
[1646738121031,0.70352771,2588.4,2588.0,0.53047961]
[1646738121229,0.3863,2588.9,2588.1,0.38891924]
[1646738121427,0.00386422,2588.5,2588.1,12.18891924]
[1646738121627,0.00386422,2588.5,2588.1,0.38891924]
[1646738121827,0.00386422,2588.5,2588.1,1.55258293]
[1646738122228,0.08469275,2588.8,2588.3,0.08891924]
[1646738122630,0.08469275,2588.8,2588.2,0.08891924]
[1646738122929,0.08469275,2588.8,2588.2,1.157]
[1646738122930,0.78822046,2588.8,2588.2,1.157]
[1646738123129,0.78822046,2588.7,2588.2,1.157]
[1646738123329,0.08469275,2588.6,2588.4,1.157]
[1646738123534,0.08469275,2588.5,2588.4,1.157]
[1646738124433,1.27503462,2588.5,2588.4,1.457]
[1646738124688,1.97856233,2588.5,2588.4,1.457]
[1646738125289,0.78822046,2588.5,2588.4,1.457]
[1646738126292,0.78822046,2588.5,2588.4,1.157]
[1646738126494,0.08469275,2588.5,2588.4,1.157]
[1646738126692,0.78822046,2588.5,2588.4,1.157]
[1646738127395,0.78822046,2588.5,2588.4,1.150663]
[1646738128433,0.08469275,2588.5,2588.4,1.150663]
[1646738128838,1.02642869,2588.5,2588.4,1.150663]
[1646738129636,1.96817769,2588.5,2588.4,1.150663]
[1646738129935,1.02642869,2588.5,2588.4,1.150663]
[1646738131343,1.96817769,2588.5,2588.4,1.150663]
[1646738131538,1.02642869,2588.5,2588.4,1.150663]
[1646738131939,1.96817769,2588.5,2588.4,1.150663]
[1646738132179,1.02642869,2588.5,2588.4,1.150663]
[1646738133182,1.97034972,2588.5,2588.4,1.150663]
[1646738133385,1.97033163,2588.5,2588.4,1.150663]
[1646738133785,1.02642869,2588.5,2588.4,1.150663]
[1646738134584,2.02642869,2588.5,2588.4,1.150663]
[1646738135685,1.02642869,2588.5,2588.4,1.150663]
[1646738135929,1.97031426,2588.5,2588.4,1.150663]
[1646738136731,1.02642869,2588.5,2588.4,1.150663]
[1646738136930,0.08469275,2588.5,2588.4,1.150663]
[1646738137130,0.79256734,2588.5,2588.4,1.150663]
[1646738137330,0.08469275,2588.5,2588.4,1.150663]
[1646738138330,0.79256734,2588.5,2588.4,1.150663]
[1646738139584,0.08469275,2588.5,2588.4,1.150663]
[1646738140387,0.70773645,2588.5,2588.4,1.150663]
[1646738140790,0.7924292,2588.5,2588.4,1.150663]
[1646738141391,0.08469275,2588.5,2588.4,1.150663]
[1646738142188,0.7924292,2588.5,2588.4,1.150663]
[1646738142590,0.08469275,2588.5,2588.4,1.150663]
[1646738143091,0.08469275,2588.5,2588.4,1.03559671]
[1646738145033,0.0789574,2588.5,2588.4,1.03559671]
[1646738145433,1.02667481,2588.6,2588.4,1.03559671]
[1646738145635,0.0789574,2588.5,2588.4,1.03559671]
[1646738146033,1.02667481,2588.6,2588.4,1.03559671]
[1646738146234,0.0789574,2588.5,2588.4,1.03559671]
[1646738146435,4.44388557,2588.5,2588.4,1.03559671]
[1646738146634,4.52284297,2588.5,2588.4,1.03559671]
[1646738147677,5.5,2588.4,2588.1,1.157]
[1646738147877,0.70760895,2588.2,2588.1,1.157]
[1646738148077,0.78656635,2588.2,2588.1,1.157]
[1646738148280,0.78656086,2588.2,2588.1,1.157]
[1646738148480,0.70760346,2588.2,2588.1,1.157]
[1646738149085,1.60505147,2588.2,2588.1,1.157]
[1646738149285,1.68400887,2588.2,2588.1,1.157]
[1646738149985,1.15352926,2588.2,2588.1,1.157]
[1646738150383,0.97640541,2588.2,2588.1,1.157]
[1646738152228,0.97640541,2588.2,2588.0,1.157]
[1646738152428,0.0789574,2588.1,2588.0,1.157]
[1646738152630,1.92029098,2588.2,2588.0,1.157]
[1646738152831,0.0789574,2588.1,2588.0,1.157]
[1646738156095,0.0789574,2588.1,2588.0,1.007]
[1646738158834,0.89744801,2588.2,2588.0,1.007]
[1646738158835,1.92029098,2588.2,2588.0,1.007]
[1646738159032,0.0789574,2588.1,2588.0,1.007]
[1646738160437,5.48949407,2588.1,2588.0,1.007]
[1646738160638,6.30969407,2588.1,2588.0,1.007]
[1646738161244,5.3658085,2588.1,2588.0,1.007]
[1646738161439,6.8318085,2588.1,2588.0,1.007]
[1646738162982,6.8318085,2588.1,2588.0,0.89423629]
[1646738163586,6.8318085,2588.1,2588.0,0.90823334]
[1646738164385,7.8318085,2588.1,2588.0,0.90823334]
[1646738164986,9.24593055,2588.1,2588.0,0.90823334]
[1646738165838,4.77927945,2588.1,2588.0,0.90823334]
[1646738166028,1.466,2588.1,2588.0,0.90823334]
[1646738167429,0.466,2588.1,2588.0,0.90823334]
[1646738167631,0.94370256,2588.1,2588.0,9.44968187]
[1646738167832,1.0,2588.3,2588.0,9.44968187]
[1646738167833,0.94370256,2588.2,2588.0,9.44968187]
[1646738168435,0.70775662,2588.2,2588.0,9.44968187]
[1646738168638,0.7077241,2588.3,2588.0,10.41619187]
[1646738168835,0.85260858,2588.5,2588.2,0.89423629]
[1646738169139,1.41412205,2588.8,2588.3,0.89423629]
[1646738169335,1.41412205,2589.0,2588.3,1.28033629]
[1646738169579,1.78312205,2589.1,2588.3,1.28033629]
[1646738169979,1.78312205,2589.1,2588.5,0.89423629]
[1646738170180,1.78312205,2589.1,2588.6,0.89423629]
[1646738170380,1.78312205,2589.1,2588.8,0.89423629]
[1646738170982,1.41412205,2589.1,2588.8,0.89423629]
[1646738172785,1.41412205,2589.0,2588.8,0.89423629]
[1646738173429,1.41795102,2589.1,2588.8,0.89423629]
[1646738174030,1.41412205,2589.0,2588.8,0.89423629]
[1646738174231,1.41412205,2589.0,2588.9,0.04494245]
[1646738174434,1.41795102,2589.1,2588.9,0.04494245]
[1646738175233,3.853459,2589.1,2588.9,0.04494245]